fUSD/lending_fUSD_20260413
["ID","MTS","AMOUNT","RATE_DAILY","PERIOD"]
[420392217,1776072646013,-198.51322665,0.0002716,2]
[420392218,1776072646055,-188.77991823,0.00027797,2]
[420392219,1776072646065,-338.77223089,0.00027797,2]
[420392220,1776072646098,-500.0,0.00027797,2]
[420392221,1776072646107,-500.0,0.00027797,2]
[420392222,1776072646127,-206.91057218,0.00027797,2]
[420392223,1776072646149,-500.0,0.00027797,2]
[420392224,1776072646163,-500.0,0.00027797,2]
[420392225,1776072646193,-500.0,0.00027797,2]
[420392226,1776072646204,-500.0,0.00027797,2]
[420392227,1776072646229,-500.0,0.00027797,2]
[420392228,1776072646240,-500.0,0.00027797,2]
[420392229,1776072646250,-500.0,0.00027797,2]
[420392230,1776072646268,-500.0,0.00027797,2]
[420392231,1776072646281,-500.0,0.00027797,2]
[420392232,1776072646290,-640.32771031,0.00027797,2]
[420392233,1776072646302,-500.0,0.00027797,2]
[420392234,1776072646319,-500.0,0.00027797,2]
[420392236,1776072646329,-500.0,0.00027797,2]
[420392238,1776072646339,-500.0,0.00027797,2]
[420392240,1776072646350,-500.0,0.00027797,2]
[420392242,1776072646367,-500.0,0.00027797,2]
[420392244,1776072646377,-500.0,0.00027797,2]
[420392246,1776072646387,-500.0,0.00027797,2]
[420392248,1776072646403,-500.0,0.00027797,2]
[420392250,1776072646412,-500.0,0.00027797,2]
[420392252,1776072646423,-500.0,0.00027797,2]
[420392254,1776072646435,-500.0,0.00027797,2]
[420392256,1776072646449,-500.0,0.00027797,2]
[420392258,1776072646459,-500.0,0.00027797,2]
[420392260,1776072646470,-500.0,0.00027797,2]
[420392262,1776072646482,-500.0,0.00027797,2]
[420392264,1776072646494,-500.0,0.00027797,2]
[420392266,1776072646506,-500.0,0.00027797,2]
[420392268,1776072646516,-500.0,0.00027797,2]
[420392270,1776072646526,-500.0,0.00027797,2]
[420392272,1776072646547,-500.0,0.00027797,2]
[420392274,1776072646557,-500.0,0.00027797,2]
[420392276,1776072646567,-500.0,0.00027797,2]
[420392279,1776072646580,-500.0,0.00027797,2]
[420392280,1776072646598,-500.0,0.00027797,2]
[420392282,1776072646610,-500.0,0.00027797,2]
[420392285,1776072646620,-500.0,0.00027797,2]
[420392287,1776072646632,-500.0,0.00027797,2]
[420392289,1776072646646,-500.0,0.00027797,2]
[420392290,1776072646659,-500.0,0.00027797,2]
[420392292,1776072646669,-500.0,0.00027797,2]
[420392294,1776072646688,-500.0,0.00027797,2]
[420392296,1776072646703,-500.0,0.00027797,2]
[420392298,1776072646715,-486.35719215,0.00027797,2]
[420392300,1776072646734,-500.0,0.00027797,2]
[420392302,1776072646746,-500.0,0.00027797,2]
[420392304,1776072646760,-9167.23525245,0.000278,2]
[420392307,1776072646776,-1862.86297364,0.000278,2]
[420392309,1776072646796,-19254.79726527,0.000278,2]
[420392319,1776072652515,-1997.07299826,0.00024862,2]
[420392320,1776072655407,-2177.0,0.00024862,2]
[420392321,1776072655477,-825.93700174,0.00024862,2]
[420392322,1776072655487,-1348.0,0.00026676,2]
[420392323,1776072655499,-188.62,0.00027397,2]
[420392324,1776072655513,-39140.45380087,0.000278,2]
[420392325,1776072655522,-54395.22,0.000278,7]
[420392326,1776072655543,-1528.0,0.000278,15]
[420392327,1776072655554,-2000.0,0.000278,2]
[420392328,1776072655563,-666.08457543,0.000278,2]
[420392329,1776072655581,-183.06187131,0.000278,2]
[420392330,1776072655593,-672.0,0.000278,10]
[420392331,1776072655603,-338.0,0.000278,10]
[420392332,1776072655613,-487.0,0.000278,2]
[420392333,1776072655630,-887.15,0.000278,2]
[420392334,1776072655641,-530.67222461,0.00027802,2]
[420392335,1776072655651,-5198.02381201,0.00027811,2]
[420392336,1776072655663,-4946.63926952,0.00027811,2]
[420392337,1776072655675,-5198.02381201,0.00027833,2]
[420392338,1776072655686,-4946.63926952,0.00027833,2]
[420392339,1776072655698,-530.67222461,0.00027835,2]
[420392340,1776072655712,-500.0,0.00027855,2]
[420392341,1776072655732,-5198.02381201,0.00027856,2]
[420392342,1776072655748,-4946.63926952,0.00027856,2]
[420392343,1776072655779,-169.8498408,0.00027857,2]
[420392344,1776072655814,-1036.0163664,0.00027857,2]
[420392345,1776072655826,-4166.3898454,0.00027857,2]
[420392346,1776072655864,-952.400404,0.00027857,2]
[420392347,1776072655899,-18344.8619217,0.00027857,2]
[420392348,1776072655913,-1923.8407398,0.00027857,2]
[420392349,1776072655934,-2646.881,0.00027866,18]
[420392350,1776072655949,-154.92360474,0.00027866,18]
[420392351,1776072655973,-530.67222461,0.00027867,2]
[420392352,1776072655983,-5198.02381201,0.00027878,2]
[420392353,1776072655994,-4946.63926952,0.00027878,2]
[420392354,1776072656007,-13220.99741369,0.00027882,7]
[420392355,1776072656119,-11779.00258631,0.00027882,7]
[420392356,1776072656129,-350.0,0.00027885,10]
[420392357,1776072656138,-12229.50141369,0.00027891,7]
[420392358,1776072688386,291.08,0.000129,2]
[420392359,1776072718609,2263.5,0.00030082,120]
[420392360,1776072761979,500.0,0.00027799,120]
[420392361,1776072762114,500.0,0.00027799,120]
[420392362,1776072762653,500.0,0.00027799,120]
[420392363,1776072762917,500.0,0.00027799,120]
[420392364,1776072763167,500.0,0.00027799,120]
[420392365,1776072763365,500.0,0.00027799,120]
[420392366,1776072763543,500.0,0.00027998,120]
[420392367,1776072764712,500.0,0.00027999,120]
[420392368,1776072764884,500.0,0.00027999,120]
[420392369,1776072765356,500.0,0.00027999,120]
[420392370,1776072765592,524.8176478,0.00027999,120]
[420392372,1776072801298,559.186009,0.0002989,120]
[420392373,1776072803468,1000.0,0.00030137,120]
[420392374,1776072817944,2000.0,0.00030136,120]
[420392375,1776072831437,2000.0,0.00030136,120]
[420392376,1776072853867,2000.0,0.00030137,120]
[420392377,1776072874967,2000.0,0.00030137,120]
[420392378,1776072890941,306.409483,0.00030086,120]
[420392379,1776072898791,2000.00000009,0.00030137,120]
[420392380,1776072915138,195.203401,0.00029534,120]
[420392381,1776072940493,397.482445,0.00029534,120]
[420392382,1776072944508,381.81,0.00030136,120]
[420392383,1776072993939,996.802067,0.00029082,120]
[420392384,1776073005380,195.203401,0.00028322,120]
[420392385,1776073013725,375.62144304,0.00030137,120]
[420392387,1776073027215,2000.0,0.0003,120]
[420392389,1776073094640,832.003398,0.0002744,120]
[420392390,1776073144979,604.0,0.0003,120]
[420392391,1776073179081,1624.0,0.00030137,120]
[420392394,1776073281967,311.500646,0.00027894,120]
[420392396,1776073306031,159.54041133,0.00026137,120]
[420392397,1776073319725,1449.9,0.00030082,120]
[420392398,1776073320461,1449.9,0.00030082,120]
[420392401,1776073375866,200.0,0.0003,120]
[420392402,1776073381706,416.001699,0.0002744,120]
[420392404,1776073391569,176.0,0.0003,120]
[420392405,1776073425984,208.00085,0.0002744,120]
[420392406,1776073430118,500.0,0.00027797,120]
[420392407,1776073430698,-248.9,0.00024064,2]
[420392408,1776073430746,-200.0,0.00024203,2]
[420392409,1776073430812,-150.0,0.0002457,8]
[420392410,1776073430897,-174.5,0.0002463,2]
[420392411,1776073430953,-160.40764035,0.00024658,2]
[420392412,1776073431006,-1057.83,0.00024662,2]
[420392413,1776073431478,-2000.0,0.00024694,2]
[420392414,1776073431514,-160.64,0.00024694,2]
[420392415,1776073431556,-300.0,0.000247,9]
[420392416,1776073432693,-1151.0,0.00024761,2]
[420392417,1776073432738,-700.11185105,0.00024762,2]
[420392418,1776073434467,-1297.7862979,0.00024762,2]
[420392419,1776073434534,-1000.0,0.00024762,2]
[420392420,1776073434827,-2500.0,0.00024762,2]
[420392421,1776073436730,-700.0,0.000248,9]
[420392422,1776073436776,-321.87,0.00024819,2]
[420392423,1776073436818,-954.25,0.00024819,2]
[420392424,1776073437018,-1087.82,0.00024819,2]
[420392425,1776073439793,-1000.0,0.00024762,2]
[420392426,1776073476970,212.731037,0.0002744,120]
[420392427,1776073542173,-1600.31002103,0.00024512,2]
[420392428,1776073578537,342.65071,0.00028322,120]
[420392429,1776073621991,171.325355,0.00028322,120]
[420392430,1776073637106,-1455.01111893,0.00024377,2]
[420392431,1776073833002,-858.58372285,0.00023817,2]
[420392432,1776073834003,-3813.88023045,0.00023817,2]
[420392433,1776073834356,-2720.3513327,0.00023817,2]
[420392434,1776073834369,-1027.57,0.00023937,2]
[420392435,1776073834378,-300.0,0.00023999,2]
[420392436,1776073834388,-150.0,0.00024023,2]
[420392437,1776073834398,-150.0,0.00024079,8]
[420392438,1776073834408,-150.0,0.00024353,8]
[420392439,1776073834421,-194.8915,0.0002453,2]
[420392440,1776073834431,-300.0,0.000247,9]
[420392441,1776073834441,-6897.22275878,0.00024722,2]
[420392445,1776073838244,-794.77987124,0.000238,2]
[420392446,1776073838270,-1180.38575064,0.000238,2]
[420392513,1776073840168,800.0,0.00030136,120]
[420392518,1776073840416,-5284.83437812,0.000238,2]
[420392519,1776073840426,-10343.61874122,0.00024722,2]
[420392520,1776073840440,-500.0,0.0002476,2]
[420392521,1776073840459,-500.0,0.0002476,2]
[420392522,1776073840470,-500.0,0.0002476,2]
[420392523,1776073840480,-500.0,0.0002476,2]
[420392524,1776073840491,-235.63409355,0.0002476,2]
[420392525,1776073840504,-500.0,0.0002476,2]
[420392526,1776073840516,-500.0,0.0002476,2]
[420392527,1776073840528,-500.0,0.0002476,2]
[420392528,1776073840539,-500.0,0.0002476,2]
[420392529,1776073840549,-489.93869503,0.0002476,2]
[420392530,1776073840566,-291550.26120966,0.00024761,2]
[420392532,1776073842119,-567.15937358,0.00024761,2]
[420392540,1776073843757,-417.0,0.00024761,2]
[420392543,1776073843992,-8034.25942308,0.00024761,2]
[420392544,1776073844048,-618.25228866,0.00024761,2]
[420392547,1776073846087,-24309.07329625,0.00024761,2]
[420392548,1776073846209,-11275.86380877,0.00024761,2]
[420392549,1776073846220,-1705.08709332,0.00024762,2]
[420392550,1776073846232,-2573.48899836,0.00024762,2]
[420392551,1776073846246,-600.0,0.000248,9]
[420392552,1776073846260,-7461.0,0.00024822,2]
[420392553,1776073846272,-2117.505,0.00024822,8]
[420392554,1776073846289,-151.0,0.00024847,2]
[420392555,1776073846303,-151.0,0.00024847,2]
[420392556,1776073846313,-151.0,0.00024847,2]
[420392557,1776073846331,-151.0,0.00024847,2]
[420392558,1776073846344,-151.0,0.00024847,2]
[420392559,1776073846355,-151.0,0.00024847,2]
[420392560,1776073846367,-151.0,0.00024847,2]
[420392561,1776073846388,-151.0,0.00024847,2]
[420392562,1776073846400,-151.0,0.00024847,2]
[420392563,1776073846419,-151.0,0.00024847,2]
[420392564,1776073846439,-151.0,0.00024847,2]
[420392566,1776073846452,-771.01748645,0.00024847,2]
[420392567,1776073846478,-151.0,0.00024847,2]
[420392568,1776073846490,-500.0,0.00024847,2]
[420392569,1776073846528,-500.0,0.00024847,2]
[420392570,1776073846544,-500.0,0.00024847,2]
[420392571,1776073846594,-500.0,0.00024847,2]
[420392572,1776073846657,-500.0,0.00024847,2]
[420392573,1776073846682,-500.0,0.00024847,2]
[420392574,1776073846715,-500.0,0.00024847,2]
[420392575,1776073846727,-500.0,0.00024847,2]
[420392576,1776073846747,-500.0,0.00024847,2]
[420392577,1776073846761,-500.0,0.00024847,2]
[420392578,1776073846771,-500.0,0.00024847,2]
[420392579,1776073846791,-843.88946926,0.00024847,2]
[420392580,1776073846806,-290.26104003,0.00024847,2]
[420392581,1776073846815,-487.0,0.00024862,2]
[420392582,1776073846829,-723.81,0.00024862,2]
[420392583,1776073846842,-1000.0,0.000249,9]
[420392584,1776073846852,-151.0,0.00024902,2]
[420392585,1776073846864,-151.0,0.00024957,2]
[420392586,1776073846874,-218.4242695,0.00025012,2]
[420392587,1776073846888,-176.89074155,0.00025057,2]
[420392588,1776073846898,-1705.08709327,0.00025111,2]
[420392589,1776073846910,-2573.48899829,0.00025111,2]
[420392590,1776073846919,-200.0,0.000252,2]
[420392591,1776073846932,-162.10283094,0.00025404,2]
[420392592,1776073846942,-150.0,0.00025404,2]
[420392593,1776073846955,-162.77554069,0.00025404,2]
[420392594,1776073846967,-150.0,0.00025404,2]
[420392595,1776073846977,-278.15591797,0.00025404,2]
[420392596,1776073846987,-150.0,0.00025404,2]
[420392597,1776073846997,-1705.08709327,0.00025459,2]
[420392598,1776073847007,-2573.48899829,0.00025459,2]
[420392599,1776073847017,-165.96,0.00025462,2]
[420392600,1776073847027,-150.0,0.000257,2]
[420392601,1776073847036,-4918.75,0.00025741,2]
[420392602,1776073847047,-1705.08709327,0.00025808,2]
[420392603,1776073847056,-2573.48899829,0.00025808,2]
[420392604,1776073847069,-420.0,0.00026026,2]
[420392605,1776073847080,-1705.08709327,0.00026157,2]
[420392606,1776073847090,-2573.48899829,0.00026157,2]
[420392607,1776073847100,-165.96,0.00026303,2]
[420392608,1776073847110,-150.0,0.000264,14]
[420392609,1776073847120,-161.4093,0.000264,2]
[420392610,1776073847131,-294.92,0.0002643,2]
[420392611,1776073847140,-690.15,0.0002643,2]
[420392612,1776073847150,-777.01,0.0002643,2]
[420392613,1776073847159,-176.89074153,0.00026479,2]
[420392614,1776073847168,-1705.08709327,0.00026505,2]
[420392615,1776073847179,-128.95122812,0.00026505,2]
[420392616,1776073847191,-2444.53777017,0.00026505,2]
[420392617,1776073847201,-1047.0,0.00026753,2]
[420392618,1776073847211,-1829.66222983,0.00026753,2]
[420392619,1776073847291,-21.34557806,0.00026753,2]
[420392620,1776073847322,-1015.27945675,0.00026753,2]
[420392621,1776073867917,5000.01,7.945e-05,2]
[420392622,1776073867940,3642.272027,7.945e-05,2]
[420392623,1776073876639,194.39329,0.00029534,120]
[420392624,1776073881523,618.9,0.00030136,120]
[420392625,1776073882120,618.9,0.00030136,120]
[420392626,1776073882701,618.9,0.00030136,120]
[420392627,1776073883043,618.9,0.00030136,120]
[420392628,1776073883292,618.9,0.00030136,120]
[420392629,1776073884091,618.9,0.00030136,120]
[420392630,1776073884989,618.9,0.00030136,120]
[420392631,1776073885314,618.9,0.00030136,120]
[420392632,1776073885640,618.9,0.00030136,120]
[420392633,1776073886052,618.9,0.00030136,120]
[420392634,1776073886374,618.9,0.00030136,120]
[420392635,1776073886924,618.9,0.00030136,120]
[420392636,1776073887190,618.9,0.00030136,120]
[420392637,1776073887485,618.9,0.00030136,120]
[420392638,1776073887731,618.9,0.00030136,120]
[420392639,1776073888013,618.9,0.00030136,120]
[420392640,1776073888493,618.9,0.00030136,120]
[420392641,1776073889116,618.9,0.00030136,120]
[420392642,1776073889430,618.9,0.00030136,120]
[420392643,1776073890270,618.9,0.00030136,120]
[420392644,1776073890697,618.9,0.00030136,120]
[420392645,1776073891258,618.9,0.00030136,120]
[420392646,1776073891636,618.9,0.00030136,120]
[420392647,1776073892313,618.9,0.00030136,120]
[420392648,1776073892695,618.9,0.00030136,120]
[420392649,1776073892994,618.9,0.00030136,120]
[420392650,1776073893709,618.9,0.00030136,120]
[420392651,1776073893867,618.9,0.00030136,120]
[420392652,1776073896044,618.9,0.00030136,120]
[420392653,1776073896359,618.9,0.00030136,120]
[420392654,1776073896639,618.9,0.00030136,120]
[420392655,1776073896902,618.9,0.00030136,120]
[420392656,1776073897320,618.9,0.00030136,120]
[420392657,1776073897482,618.9,0.00030136,120]
[420392658,1776073897813,618.9,0.00030136,120]
[420392659,1776073898450,618.9,0.00030136,120]
[420392660,1776073898732,618.9,0.00030136,120]
[420392661,1776073899039,618.9,0.00030136,120]
[420392662,1776073899291,618.9,0.00030136,120]
[420392663,1776073899608,618.9,0.00030136,120]
[420392664,1776073900022,618.9,0.00030136,120]
[420392665,1776073900469,618.9,0.00030136,120]
[420392666,1776073900883,618.9,0.00030136,120]
[420392667,1776073901344,618.9,0.00030136,120]
[420392668,1776073901604,618.9,0.00030136,120]
[420392669,1776073902393,618.9,0.00030136,120]
[420392670,1776073903066,618.9,0.00030136,120]
[420392671,1776073903567,618.9,0.00030136,120]
[420392672,1776073905809,618.9,0.00030136,120]
[420392673,1776073907345,618.9,0.00030136,120]
[420392674,1776073907658,618.9,0.00030136,120]
[420392675,1776073907966,618.9,0.00030136,120]
[420392676,1776073908373,618.9,0.00030136,120]
[420392677,1776073908595,618.9,0.00030136,120]
[420392678,1776073908874,618.9,0.00030136,120]
[420392679,1776073909334,618.9,0.00030136,120]
[420392680,1776073909532,618.9,0.00030136,120]
[420392681,1776073909764,618.9,0.00030136,120]
[420392682,1776073910154,618.9,0.00030136,120]
[420392683,1776073910616,618.9,0.00030136,120]
[420392684,1776073911267,618.9,0.00030136,120]
[420392685,1776073911555,618.9,0.00030136,120]
[420392686,1776073912495,618.9,0.00030136,120]
[420392687,1776073913701,618.9,0.00030136,120]
[420392688,1776073914438,618.9,0.00030136,120]
[420392689,1776073914870,618.9,0.00030136,120]
[420392690,1776073915345,618.9,0.00030136,120]
[420392691,1776073915734,618.9,0.00030136,120]
[420392692,1776073915836,618.9,0.00030136,120]
[420392693,1776073916185,618.9,0.00030136,120]
[420392694,1776073916634,618.9,0.00030136,120]
[420392695,1776073917882,618.9,0.00030136,120]
[420392696,1776073918860,618.9,0.00030136,120]
[420392697,1776073919183,618.9,0.00030136,120]
[420392698,1776073919918,618.9,0.00030136,120]
[420392699,1776073920525,618.9,0.00030136,120]
[420392700,1776073921145,618.9,0.00030136,120]
[420392701,1776073921382,1909.8,0.00030082,120]
[420392702,1776073921471,618.9,0.00030136,120]
[420392703,1776073921936,618.9,0.00030136,120]
[420392704,1776073921983,1909.8,0.00030082,120]
[420392705,1776073922289,618.9,0.00030136,120]
[420392706,1776073922560,618.9,0.00030136,120]
[420392707,1776073923373,618.9,0.00030136,120]
[420392708,1776073923695,618.9,0.00030136,120]
[420392709,1776073923843,618.9,0.00030136,120]
[420392710,1776073924797,618.9,0.00030136,120]
[420392711,1776073925194,618.9,0.00030136,120]
[420392712,1776073925643,618.9,0.00030136,120]
[420392713,1776073926697,618.9,0.00030136,120]
[420392714,1776073926853,618.9,0.00030136,120]
[420392715,1776073927121,618.9,0.00030136,120]
[420392716,1776073927494,618.9,0.00030136,120]
[420392717,1776073928779,618.9,0.00030136,120]
[420392718,1776073929199,618.9,0.00030136,120]
[420392719,1776073929540,618.9,0.00030136,120]
[420392720,1776073930022,618.9,0.00030136,120]
[420392721,1776073930496,618.9,0.00030136,120]
[420392722,1776073931010,618.9,0.00030136,120]
[420392723,1776073931280,618.9,0.00030136,120]
[420392724,1776073931476,618.9,0.00030136,120]
[420392725,1776073932337,618.9,0.00030136,120]
[420392726,1776074018439,313.42,0.00030137,120]
[420392728,1776074246951,5000.01,0.00018,2]
[420392729,1776074246985,5000.01,0.00018,2]
[420392730,1776074247041,10000.01,0.00018,2]
[420392731,1776074247078,10000.01,0.00018,2]
[420392732,1776074247106,10000.01,0.00018,2]
[420392733,1776074247155,10000.01,0.00018,2]
[420392734,1776074247187,10000.01,0.00018,2]
[420392735,1776074247216,10000.01,0.00018,2]
[420392736,1776074247244,10000.01,0.00018,2]
[420392737,1776074247282,186035.28712996,0.00018,2]
[420392738,1776074312020,5000.01,8e-05,2]
[420392739,1776074312072,5000.01,8e-05,2]
[420392740,1776074312104,6501.57751215,8e-05,2]
[420392741,1776074318654,154.63567478,0.0003,120]
[420392742,1776074331231,171.70045043,0.0003013,120]
[420392744,1776074379011,2682.88943636,0.000275,120]
[420392745,1776074397501,280.40403626,0.0003013,120]
[420392746,1776074438516,531.63056,0.0003013,120]
[420392747,1776074451118,958.87409887,0.0003,120]
[420392748,1776074464649,240.2880914,0.00030133,120]
[420392755,1776074523242,2058.3,0.00030082,120]
[420392756,1776074524583,2058.3,0.00030082,120]
[420392760,1776074745301,500.0,0.0003013,120]
[420392761,1776074750218,-150.0,0.00018798,2]
[420392762,1776074750270,-150.0,0.00018798,2]
[420392763,1776074750313,-471.0,0.00018798,2]
[420392764,1776074750375,-171.84,0.00018987,2]
[420392765,1776074750456,-150.0,0.00019072,2]
[420392766,1776074750506,-150.0,0.00019345,8]
[420392767,1776074750555,-482.8858953,0.00020681,2]
[420392768,1776074779945,152.0,0.00018316,7]
[420392769,1776074781138,152.0,0.00018316,7]
[420392770,1776074781589,152.0,0.00018316,7]
[420392771,1776074782810,3530.01,0.00011631,2]
[420392772,1776074783183,1014.0,0.00012243,2]
[420392773,1776074783214,2516.01,0.00012243,2]
[420392774,1776074783383,2484.0,0.00012856,2]
[420392775,1776074783419,1046.01,0.00012856,2]
[420392776,1776074787851,3530.01,0.00013468,2]
[420392777,1776074788182,1470.0,0.0001408,2]
[420392778,1776074788232,2060.01,0.0001408,2]
[420392779,1776074788358,2940.0,0.00014692,2]
[420392780,1776074788388,590.01,0.00014692,2]
[420392781,1776074788510,3530.01,0.00015304,2]
[420392782,1776074788606,3530.01,0.00015916,2]
[420392783,1776074788869,1303.97,0.00016529,2]
[420392784,1776074788910,2226.04,0.00016529,2]
[420392785,1776074788978,3530.01,0.00017141,2]
[420392786,1776074789056,3530.01,0.00017753,2]
[420392787,1776074833104,-2902.61667418,0.00018365,2]
[420392788,1776074836668,-627.39332582,0.00018365,2]
[420392789,1776074836691,-493.40372392,0.00018977,2]
[420392801,1776075032163,-475.52096601,0.000189,2]
[420392802,1776075032186,-474.0,0.000189,2]
[420392803,1776075032210,-1224.98115725,0.00018977,2]
[420392804,1776075032309,-1667.75473326,0.00018977,2]
[420392805,1776075032323,-143.87038557,0.00018977,2]
[420392806,1776075032334,-205.15,0.00019,2]
[420392807,1776075032354,-533.29886214,0.00019589,2]
[420392808,1776075032387,-2996.71113786,0.00019589,2]
[420392809,1776075032397,-300.0,0.00019997,2]
[420392810,1776075032438,-34.84294469,0.00019997,2]
[420392813,1776075032541,-1165.15705531,0.00019997,2]
[420392815,1776075032559,-7364.228058,0.00019998,2]
[420392817,1776075032575,-300.0,0.00020099,2]
[420392818,1776075032599,-3530.01,0.00020202,2]
[420392820,1776075032608,-4897.90089623,0.00020202,2]
[420392822,1776075032621,-150.0,0.000205,2]
[420392824,1776075032644,-150.0,0.00020578,8]
[420392826,1776075032654,-8346.12578581,0.00020581,2]
[420392828,1776075032672,-263.56611679,0.00020681,2]
[420392830,1776075032697,-475.520966,0.00020769,2]
[420392832,1776075032717,-3530.01,0.00020814,2]
[420392834,1776075032738,-150.0,0.00020852,8]
[420392836,1776075032749,-300.0,0.00020875,2]
[420392838,1776075032767,-195.0,0.00020875,2]
[420392840,1776075032795,-218.43628935,0.00020875,2]
[420392841,1776075032807,-207.24788465,0.00021,2]
[420392842,1776075032816,-172.0708814,0.00021,2]
[420392843,1776075032839,-207.24788465,0.000212,2]
[420392844,1776075032851,-172.0708814,0.000212,2]
[420392845,1776075032860,-1000.0,0.00021399,2]
[420392846,1776075032889,-164.6546,0.000214,2]
[420392847,1776075032900,-150.0,0.00021425,2]
[420392848,1776075032909,-3530.01,0.00021426,2]
[420392849,1776075032927,-172.0708814,0.000215,2]
[420392850,1776075032939,-168.0,0.0002154,2]
[420392851,1776075032954,-172.0708814,0.000217,2]
[420392852,1776075032968,-420.0,0.00021775,2]
[420392853,1776075032979,-172.0708814,0.000219,2]
[420392854,1776075032991,-3530.01,0.00022038,2]
[420392855,1776075033003,-180.741,0.000223,2]
[420392856,1776075033026,-250.0,0.00022635,2]
[420392857,1776075033036,-475.520966,0.00022638,2]
[420392858,1776075033046,-3530.01,0.0002265,2]
[420392859,1776075033062,-168.0,0.00022737,2]
[420392860,1776075033073,-579.63612453,0.00022738,7]
[420392861,1776075033082,-500.0,0.00022871,2]
[420392862,1776075033091,-1500.0,0.00023187,2]
[420392863,1776075033114,-198.3989,0.000232,2]
[420392864,1776075033124,-3530.01,0.00023262,2]
[420392865,1776075033133,-619.1,0.00023353,2]
[420392866,1776075033155,-592.57,0.00023463,2]
[420392867,1776075033165,-5000.0,0.00023532,2]
[420392868,1776075033181,-500.0,0.00023536,2]
[420392869,1776075033192,-500.0,0.00023717,2]
[420392870,1776075033201,-168.0,0.00023934,2]
[420392871,1776075033211,-217.7821,0.00024,2]
[420392872,1776075033230,-369.94,0.00024298,2]
[420392873,1776075033242,-682.03483738,0.00024389,2]
[420392874,1776075033253,-118006.95916299,0.00024389,2]
[420392875,1776075033364,-491.5847794,0.00024389,2]
[420392876,1776075033435,-2831.0,0.00024389,2]
[420392879,1776075038574,-178.551485,0.0002074,2]
[420392880,1776075038585,-194.18459726,0.00024389,2]
[420392881,1776075038605,-767.54052114,0.00024389,2]
[420392882,1776075038868,-460.35803313,0.00024389,2]
[420392883,1776075038884,-5903.718551,0.00024389,2]
[420392884,1776075038902,-31096.61575508,0.00024389,2]
[420392885,1776075038920,-222.98,0.00024489,3]
[420392886,1776075038930,-774.2301018,0.00024489,2]
[420392887,1776075038944,-16735.92014312,0.0002449,2]
[420392888,1776075038962,-8355.461751,0.0002449,2]
[420392891,1776075038978,-10975.31864321,0.0002449,2]
[420392892,1776075039002,-897.12,0.0002449,3]
[420392894,1776075039013,-151.0,0.00024497,7]
[420392896,1776075039025,-500.0,0.00024499,2]
[420392898,1776075039041,-500.0,0.00024499,2]
[420392900,1776075039052,-500.0,0.00024499,2]
[420392902,1776075039063,-500.0,0.00024499,2]
[420392904,1776075039086,-465.21837857,0.00024499,2]
[420392906,1776075039096,-500.0,0.00024499,2]